[Event "British KO-ch Pre 2019"]
[Site "London"]
[Date "2019.11.30"]
[Round "5.7"]
[White "Pein, Jonathan"]
[Black "Toma, Katarzyna"]
[Result "0-1"]
[ECO "D77"]
[WhiteElo "2151"]
[BlackElo "2272"]
[Annotator "NA"]
[PlyCount "50"]
[EventDate "2019.11.30"]
[EventType "k.o."]
[EventCountry "ENG"]
[SourceTitle "playchess.com"]
[Source "ChessBase"]
[SourceQuality "1"]
[TimeControl "600+5"]

1. g3 {[%emt 0:00:00]} g6 {[%emt 0:00:00]} 2. Bg2 {[%emt 0:00:00]} d5 {[%emt 0:00:05]} 3. c4 {[%emt 0:00:07]} Nf6 {[%emt 0:00:10]} 4. Nf3 {[%emt 0:00:05]} Bg7 {[%emt 0:00:08]} 5. O-O {[%emt 0:00:02]} O-O {[%emt 0:00:06]} 6. d4 {[%emt 0:00:20]} dxc4 {[%emt 0:00:04]} 7. Ne5 {[%emt 0:00:10]} c5 {[%emt 0:01:01]} 8. dxc5 {[%emt 0:00:03]} Qc7 {[%emt 0:00:10]} 9. Nxc4 {[%emt 0:00:26]} Qxc5 {[%emt 0:00:10]} 10. Nba3 {[%emt 0:00:30]} Nc6 {[%emt 0:00:09]} 11. Be3 {[%emt 0:00:02]} Qh5 {[%emt 0:00:05]} 12. f3 {[%emt 0:02:09]} Be6 {[%emt 0:01:05]} 13. Rc1 {[%emt 0:01:27]} Rac8 {[%emt 0:00:33]} 14. b3 {[%emt 0:00:19]} b5 {[%emt 0:00:15]} 15. Nd2 {[%emt 0:00:52]} Nd5 {[%emt 0:00:16]} 16. Bf2 {[%emt 0:00:29]} Bb2 {[%emt 0:00:56]} 17. Rxc6 Rxc6 {[%emt 0:00:07]} 18. Nxb5 {[%emt 0:01:54]} Rc1 {[%emt 0:00:56]} 19. Qxc1 {[%emt 0:00:09]} Bxc1 {[%emt 0:00:01]} 20. Rxc1 {[%emt 0:00:01]} Qg5 {[%emt 0:00:29]} 21. Be1 {[%emt 0:01:55]} Rd8 {[%emt 0:01:17]} 22. a4 {[%emt 0:00:36]} Qe3+ {[%emt 0:00:25]} 23. Kf1 {[%emt 0:00:05]} a6 {[%emt 0:00:05]} 24. Nc7 {[%emt 0:00:09]} Nc3 {[%emt 0:00:47]} 25. Nxe6 fxe6 {[%emt 0:00:10]} 0-1

[Event "British KO-ch Pre 2019"]
[Site "London"]
[Date "2019.11.30"]
[Round "5.8"]
[White "McPhillips, Joseph"]
[Black "Kalaiyalahan, Akshaya"]
[Result "1-0"]
[ECO "A00"]
[WhiteElo "2434"]
[BlackElo "2154"]
[Annotator "NA"]
[PlyCount "65"]
[EventDate "2019.11.30"]
[EventType "k.o."]
[EventCountry "ENG"]
[SourceTitle "playchess.com"]
[Source "ChessBase"]
[SourceQuality "1"]
[TimeControl "600+5"]

1. f3 {[%emt 0:00:00]} d5 {[%emt 0:00:03]} 2. Kf2 {[%emt 0:00:37]} e5 {[%emt 0:00:35]} 3. Kg3 {[%emt 0:00:03]} Bc5 {[%emt 0:00:34]} 4. e3 {[%emt 0:00:02]} d4 {[%emt 0:01:35]} 5. exd4 {[%emt 0:00:08]} Bxd4 {[%emt 0:00:37]} 6. d3 {[%emt 0:00:02]} Nf6 {[%emt 0:01:13]} 7. h3 {[%emt 0:00:08]} Qd6 {[%emt 0:00:21]} 8. Kh2 {[%emt 0:00:50]} Nd5 {[%emt 0:02:43]} 9. Qe1 {[%emt 0:00:59]} O-O {[%emt 0:00:17]} 10. Nc3 {[%emt 0:00:30]} e4+ {[%emt 0:00:25]} 11. g3 {[%emt 0:00:05]} Bxg1+ 12. Rxg1 {[%emt 0:00:02]} exf3 {[%emt 0:01:03]} 13. Qe4 {[%emt 0:00:30]} Nxc3 14. bxc3 {[%emt 0:00:02]} Qf6 {[%emt 0:00:05]} 15. Ba3 {[%emt 0:00:58]} Bd7 {[%emt 0:01:19]} 16. Bxf8 {[%emt 0:00:18]} Bc6 {[%emt 0:00:07]} 17. Qg4 {[%emt 0:01:22]} Bd7 {[%emt 0:00:18]} 18. Qxg7+ {[%emt 0:00:11]} Qxg7 {[%emt 0:00:05]} 19. Bxg7 Kxg7 {[%emt 0:00:00]} 20. d4 {[%emt 0:00:15]} Bc6 {[%emt 0:00:01]} 21. Bc4 {[%emt 0:00:06]} Nd7 {[%emt 0:00:05]} 22. Rge1 {[%emt 0:00:58]} Nf6 {[%emt 0:00:13]} 23. Re5 {[%emt 0:00:24]} Re8 {[%emt 0:00:10]} 24. Rxe8 {[%emt 0:00:28]} Nxe8 {[%emt 0:00:04]} 25. d5 {[%emt 0:00:07]} Bd7 {[%emt 0:00:01]} 26. Rf1 {[%emt 0:00:04]} Nd6 {[%emt 0:00:03]} 27. Bd3 {[%emt 0:00:12]} Nb5 {[%emt 0:00:07]} 28. c4 {[%emt 0:00:44]} Nd4 {[%emt 0:00:07]} 29. c3 {[%emt 0:00:04]} Nf5 {[%emt 0:00:03]} 30. Bxf5 Bxf5 {[%emt 0:00:02]} 31. Rxf3 {[%emt 0:00:18]} Bb1 {[%emt 0:00:07]} 32. a3 {[%emt 0:00:14]} Ba2 {[%emt 0:00:03]} 33. Rf4 {[%emt 0:00:02]} 1-0

[Event "British KO-ch Pre 2019"]
[Site "London"]
[Date "2019.11.30"]
[Round "6.1"]
[White "Harvey, Marcus R"]
[Black "Clarke, Brandon G I"]
[Result "1-0"]
[ECO "E60"]
[WhiteElo "2405"]
[BlackElo "2431"]
[Annotator "NA"]
[PlyCount "65"]
[EventDate "2019.11.30"]
[EventType "k.o."]
[EventCountry "ENG"]
[SourceTitle "playchess.com"]
[Source "ChessBase"]
[SourceQuality "1"]
[TimeControl "600+5"]

1. Nf3 {[%emt 0:00:00]} Nf6 {[%emt 0:00:00]} 2. b3 {[%emt 0:00:00]} g6 {[%emt 0:00:00]} 3. Bb2 {[%emt 0:00:00]} Bg7 {[%emt 0:00:00]} 4. e3 {[%emt 0:00:00]} O-O {[%emt 0:00:05]} 5. Be2 {[%emt 0:00:01]} d6 {[%emt 0:00:01]} 6. d4 {[%emt 0:00:01]} Nbd7 {[%emt 0:00:33]} 7. O-O {[%emt 0:00:03]} e5 8. dxe5 {[%emt 0:00:01]} Ng4 {[%emt 0:00:40]} 9. c4 {[%emt 0:00:01]} Ndxe5 {[%emt 0:00:36]} 10. Nxe5 {[%emt 0:00:18]} Nxe5 {[%emt 0:00:03]} 11. Nc3 {[%emt 0:00:01]} Re8 {[%emt 0:00:26]} 12. Qd2 {[%emt 0:00:10]} h5 {[%emt 0:00:10]} 13. Nd5 {[%emt 0:00:10]} Bg4 {[%emt 0:01:19]} 14. h3 {[%emt 0:00:33]} Be6 {[%emt 0:00:46]} 15. Rad1 {[%emt 0:00:12]} a5 {[%emt 0:00:42]} 16. Bc3 {[%emt 0:00:05]} a4 {[%emt 0:01:04]} 17. Qb2 {[%emt 0:00:02]} f6 {[%emt 0:02:26]} 18. Nf4 {[%emt 0:00:17]} Bf7 {[%emt 0:00:13]} 19. c5 {[%emt 0:00:02]} f5 {[%emt 0:01:09]} 20. cxd6 {[%emt 0:00:58]} cxd6 {[%emt 0:00:00]} 21. Bb5 {[%emt 0:00:17]} Re7 {[%emt 0:00:45]} 22. Nd5 {[%emt 0:00:02]} Bxd5 {[%emt 0:00:28]} 23. Rxd5 {[%emt 0:00:02]} axb3 {[%emt 0:00:05]} 24. Qxb3 {[%emt 0:00:07]} Kh7 {[%emt 0:00:03]} 25. Rfd1 {[%emt 0:00:01]} Rc8 {[%emt 0:00:06]} 26. Rxd6 {[%emt 0:00:24]} Qc7 {[%emt 0:00:21]} 27. Bxe5 {[%emt 0:00:10]} Rxe5 {[%emt 0:00:05]} 28. Rd7 {[%emt 0:00:09]} Qc5 {[%emt 0:00:06]} 29. Qf7 {[%emt 0:00:19]} Rg8 {[%emt 0:00:04]} 30. Bc4 {[%emt 0:00:03]} Ree8 {[%emt 0:00:23]} 31. Rxb7 {[%emt 0:00:23]} Qe5 {[%emt 0:00:00]} 32. Qc7 {[%emt 0:00:28]} Rgf8 {[%emt 0:00:08]} 33. Qxe5 {[%emt 0:00:05]} 1-0

[Event "British KO-ch Pre 2019"]
[Site "London"]
[Date "2019.11.30"]
[Round "6.3"]
[White "Wadsworth, Matthew J"]
[Black "Horton, Andrew P"]
[Result "0-1"]
[ECO "A37"]
[WhiteElo "2401"]
[BlackElo "2378"]
[Annotator "NA"]
[PlyCount "150"]
[EventDate "2019.11.30"]
[EventType "k.o."]
[EventCountry "ENG"]
[SourceTitle "playchess.com"]
[Source "ChessBase"]
[SourceQuality "1"]
[TimeControl "600+5"]

1. Nf3 {[%emt 0:00:00]} c5 {[%emt 0:00:08]} 2. g3 {[%emt 0:00:01]} g6 {[%emt 0:00:01]} 3. Bg2 {[%emt 0:00:03]} Bg7 {[%emt 0:00:02]} 4. c4 {[%emt 0:00:03]} Nc6 {[%emt 0:00:01]} 5. Nc3 {[%emt 0:00:03]} d6 {[%emt 0:00:08]} 6. O-O {[%emt 0:00:06]} Bf5 {[%emt 0:00:30]} 7. a3 {[%emt 0:01:10]} Qd7 {[%emt 0:00:04]} 8. d3 {[%emt 0:00:46]} Bh3 {[%emt 0:00:08]} 9. Ng5 {[%emt 0:00:23]} Bxg2 10. Kxg2 {[%emt 0:00:01]} h6 {[%emt 0:00:38]} 11. Nf3 {[%emt 0:00:03]} Nf6 {[%emt 0:00:10]} 12. Rb1 {[%emt 0:00:14]} O-O {[%emt 0:00:25]} 13. b4 {[%emt 0:00:12]} b6 {[%emt 0:00:06]} 14. Bd2 {[%emt 0:00:43]} Rac8 {[%emt 0:00:08]} 15. b5 {[%emt 0:00:45]} Nd4 {[%emt 0:01:03]} 16. e3 {[%emt 0:00:52]} Nxf3 {[%emt 0:02:11]} 17. Qxf3 {[%emt 0:00:02]} h5 {[%emt 0:00:56]} 18. h3 {[%emt 0:00:25]} Ne8 {[%emt 0:01:16]} 19. a4 {[%emt 0:00:32]} e6 {[%emt 0:01:00]} 20. a5 {[%emt 0:00:32]} Rd8 {[%emt 0:00:10]} 21. axb6 {[%emt 0:01:11]} axb6 {[%emt 0:00:00]} 22. Qc6 {[%emt 0:00:34]} d5 {[%emt 0:02:09]} 23. cxd5 {[%emt 0:00:17]} Bxc3 {[%emt 0:00:15]} 24. Bxc3 {[%emt 0:00:44]} Qxd5+ {[%emt 0:00:03]} 25. Kh2 {[%emt 0:00:08]} Rd6 {[%emt 0:00:16]} 26. Qxd5 {[%emt 0:00:09]} Rxd5 {[%emt 0:00:03]} 27. d4 {[%emt 0:00:08]} Nd6 {[%emt 0:00:12]} 28. dxc5 {[%emt 0:00:17]} Ne4 {[%emt 0:00:05]} 29. Bb4 {[%emt 0:00:36]} bxc5 {[%emt 0:00:06]} 30. Ba5 {[%emt 0:00:17]} c4 {[%emt 0:00:08]} 31. f3 {[%emt 0:00:44]} Nd2 {[%emt 0:00:02]} 32. Bxd2 {[%emt 0:00:06]} Rxd2+ {[%emt 0:00:01]} 33. Kg1 {[%emt 0:00:02]} c3 {[%emt 0:00:10]} 34. Rb3 {[%emt 0:00:30]} Rd3 {[%emt 0:00:07]} 35. Rc1 {[%emt 0:00:03]} Rb8 {[%emt 0:00:05]} 36. Kf2 {[%emt 0:00:05]} Rd2+ {[%emt 0:00:04]} 37. Ke1 {[%emt 0:00:02]} Rb2 {[%emt 0:00:06]} 38. Rcxc3 {[%emt 0:00:06]} Rxb5 {[%emt 0:00:01]} 39. Rxb5 {[%emt 0:00:03]} Rxb5 {[%emt 0:00:01]} 40. Rc2 {[%emt 0:00:02]} Rb1+ {[%emt 0:00:08]} 41. Kf2 {[%emt 0:00:01]} Kg7 {[%emt 0:00:03]} 42. e4 {[%emt 0:00:07]} g5 {[%emt 0:00:02]} 43. f4 {[%emt 0:00:13]} Rb4 {[%emt 0:00:09]} 44. Kf3 {[%emt 0:00:08]} Rb3+ {[%emt 0:00:03]} 45. Kf2 {[%emt 0:00:03]} h4 {[%emt 0:00:06]} 46. gxh4 {[%emt 0:00:08]} gxf4 {[%emt 0:00:00]} 47. Kg2 {[%emt 0:00:07]} Rg3+ {[%emt 0:00:11]} 48. Kh2 {[%emt 0:00:01]} Re3 {[%emt 0:00:01]} 49. Rc4 {[%emt 0:00:02]} Re2+ {[%emt 0:00:04]} 50. Kg1 {[%emt 0:00:02]} Kf6 {[%emt 0:00:05]} 51. h5 {[%emt 0:00:08]} Kg5 {[%emt 0:00:08]} 52. Rc5+ {[%emt 0:00:01]} Kh6 {[%emt 0:00:01]} 53. Kf1 {[%emt 0:00:15]} Rxe4 {[%emt 0:00:04]} 54. Kf2 {[%emt 0:00:01]} Re3 {[%emt 0:00:04]} 55. Rc7 {[%emt 0:00:10]} Kxh5 {[%emt 0:00:15]} 56. Rxf7 {[%emt 0:00:02]} e5 {[%emt 0:00:03]} 57. Rh7+ {[%emt 0:00:04]} Kg6 {[%emt 0:00:02]} 58. Rh8 {[%emt 0:00:03]} Kf5 {[%emt 0:00:03]} 59. h4 {[%emt 0:00:02]} Rh3 {[%emt 0:00:16]} 60. Kg2 {[%emt 0:00:04]} Rg3+ {[%emt 0:00:00]} 61. Kf2 {[%emt 0:00:01]} e4 {[%emt 0:00:09]} 62. h5 {[%emt 0:00:02]} Rh3 {[%emt 0:00:03]} 63. h6 {[%emt 0:00:05]} Kg6 {[%emt 0:00:05]} 64. Rg8+ {[%emt 0:00:08]} Kh7 {[%emt 0:00:05]} 65. Rf8 {[%emt 0:00:15]} Rf3+ {[%emt 0:00:03]} 66. Kg2 {[%emt 0:00:01]} Kxh6 {[%emt 0:00:03]} 67. Re8 {[%emt 0:00:05]} Rg3+ {[%emt 0:00:04]} 68. Kh2 {[%emt 0:00:02]} e3 {[%emt 0:00:03]} 69. Rh8+ {[%emt 0:00:04]} Kg5 {[%emt 0:00:06]} 70. Rg8+ {[%emt 0:00:02]} Kh4 {[%emt 0:00:06]} 71. Rh8+ {[%emt 0:00:08]} Kg4 {[%emt 0:00:03]} 72. Rg8+ {[%emt 0:00:04]} Kf3 {[%emt 0:00:02]} 73. Re8 {[%emt 0:00:01]} Rg7 {[%emt 0:00:03]} 74. Re6 {[%emt 0:00:05]} Kf2 {[%emt 0:00:04]} 75. Kh3 {[%emt 0:00:02]} e2 {[%emt 0:00:03]} 0-1

[Event "British KO-ch Pre 2019"]
[Site "London"]
[Date "2019.11.30"]
[Round "6.4"]
[White "Merry, Alan B"]
[Black "Haria, Ravi"]
[Result "1-0"]
[ECO "D31"]
[WhiteElo "2426"]
[BlackElo "2451"]
[Annotator "RC"]
[PlyCount "75"]
[EventDate "2019.11.30"]
[EventType "k.o."]
[EventCountry "ENG"]
[SourceTitle "playchess.com"]
[Source "ChessBase"]
[SourceQuality "1"]
[TimeControl "600+5"]

1. c4 {[%emt 0:00:00]} e6 {[%emt 0:00:00]} 2. Nc3 {[%emt 0:00:00]} d5 {[%emt 0:00:00]} 3. d4 {[%emt 0:00:01]} a6 {[%emt 0:00:01]} 4. cxd5 {[%emt 0:00:05]} exd5 {[%emt 0:00:01]} 5. Bf4 {[%emt 0:00:26]} Nf6 {[%emt 0:00:11]} 6. e3 {[%emt 0:00:25]} Bd6 {[%emt 0:00:04]} 7. Bxd6 {[%emt 0:00:06]} Qxd6 {[%emt 0:00:02]} 8. Bd3 {[%emt 0:00:04]} O-O {[%emt 0:00:17]} 9. Nge2 {[%emt 0:00:07]} c5 {[%emt 0:00:41]} 10. dxc5 Qxc5 {[%emt 0:00:02]} 11. O-O {[%emt 0:00:19]} Nc6 {[%emt 0:00:02]} 12. Rc1 {[%emt 0:00:16]} Qd6 {[%emt 0:00:40]} 13. Qa4 {[%emt 0:01:43]} d4 {[%emt 0:02:51]} 14. Nxd4 {[%emt 0:01:26]} Ng4 {[%emt 0:00:35]} 15. g3 {[%emt 0:00:03]} Qh6 {[%emt 0:00:15]} 16. h4 {[%emt 0:03:25]} Nxe3 {[%emt 0:03:09]} 17. Nxc6 {[%emt 0:00:25]} Nxf1 {[%emt 0:01:02]} 18. Ne7+ {[%emt 0:00:08]} Kh8 19. Rxf1 {[%emt 0:00:00]} Bh3 {[%emt 0:00:04]} 20. Rd1 {[%emt 0:00:57]} Rae8 {[%emt 0:00:08]} 21. Ned5 {[%emt 0:00:00]} Re5 {[%emt 0:00:41]} 22. Qd4 {[%emt 0:00:00]} f6 {[%emt 0:00:39]} 23. Nf4 {[%emt 0:00:00]} Bg4 {[%emt 0:00:04]} 24. Ng6+ {[%emt 0:00:00]} hxg6 {[%emt 0:00:12]} 25. Qxg4 {[%emt 0:00:00]} g5 {[%emt 0:00:02]} 26. hxg5 {[%emt 0:00:52]} Rxg5 {[%emt 0:00:00]} 27. Qf3 {[%emt 0:00:18]} f5 {[%emt 0:00:08]} 28. Ne2 {[%emt 0:00:34]} Rg4 {[%emt 0:00:14]} 29. Kg2 {[%emt 0:00:17]} Kg8 {[%emt 0:00:11]} 30. Qd5+ {[%emt 0:00:14]} Rf7 {[%emt 0:00:05]} 31. Bc4 {[%emt 0:00:05]} Rxc4 {[%emt 0:00:08]} 32. Qxc4 {[%emt 0:00:03]} Qf6 {[%emt 0:00:02]} 33. Nf4 {[%emt 0:00:06]} g6 {[%emt 0:00:05]} 34. Re1 {[%emt 0:00:03]} Kg7 {[%emt 0:00:05]} 35. Re6 {[%emt 0:00:02]} Qxb2 {[%emt 0:00:04]} 36. Rxg6+ {[%emt 0:00:02]} Kf8 {[%emt 0:00:02]} 37. Qc8+ {[%emt 0:00:02]} Ke7 {[%emt 0:00:04]} 38. Re6# 1-0

[Event "British KO-ch Pre 2019"]
[Site "London"]
[Date "2019.11.30"]
[Round "6.6"]
[White "Willow, Jonah B"]
[Black "Head, Louise"]
[Result "1-0"]
[ECO "B12"]
[WhiteElo "2345"]
[BlackElo "2100"]
[Annotator "NA"]
[PlyCount "57"]
[EventDate "2019.11.30"]
[EventType "k.o."]
[EventCountry "ENG"]
[SourceTitle "playchess.com"]
[Source "ChessBase"]
[SourceQuality "1"]
[TimeControl "600+5"]

1. e4 {[%emt 0:00:00]} c6 {[%emt 0:00:00]} 2. d4 {[%emt 0:00:00]} d5 {[%emt 0:00:00]} 3. e5 {[%emt 0:00:03]} c5 {[%emt 0:00:00]} 4. dxc5 {[%emt 0:00:02]} e6 {[%emt 0:00:00]} 5. Be3 {[%emt 0:00:02]} Nd7 {[%emt 0:00:00]} 6. c4 {[%emt 0:00:06]} dxc4 {[%emt 0:00:25]} 7. Bxc4 {[%emt 0:00:25]} Qc7 {[%emt 0:00:47]} 8. Nf3 {[%emt 0:00:21]} Bxc5 {[%emt 0:00:07]} 9. Bxc5 {[%emt 0:00:27]} Qxc5 {[%emt 0:00:05]} 10. Qe2 {[%emt 0:01:44]} Ne7 {[%emt 0:00:06]} 11. O-O {[%emt 0:00:22]} O-O {[%emt 0:00:32]} 12. Nc3 {[%emt 0:00:15]} Nb6 {[%emt 0:00:28]} 13. Bd3 {[%emt 0:00:03]} Ng6 {[%emt 0:00:29]} 14. h4 {[%emt 0:00:07]} Qb4 {[%emt 0:01:43]} 15. g3 {[%emt 0:00:50]} Qg4 {[%emt 0:00:18]} 16. Qe3 {[%emt 0:00:50]} Nc4 {[%emt 0:00:37]} 17. Bxc4 {[%emt 0:00:07]} Qxc4 {[%emt 0:00:02]} 18. Ne4 {[%emt 0:00:06]} Bd7 {[%emt 0:00:55]} 19. h5 {[%emt 0:00:37]} Ne7 {[%emt 0:00:25]} 20. h6 {[%emt 0:00:09]} Nf5 {[%emt 0:00:11]} 21. Qf4 {[%emt 0:00:03]} Kh8 {[%emt 0:01:15]} 22. hxg7+ {[%emt 0:00:04]} Nxg7 {[%emt 0:00:01]} 23. Rac1 {[%emt 0:00:11]} Qb4 {[%emt 0:00:37]} 24. a3 {[%emt 0:00:04]} Qa4 {[%emt 0:00:09]} 25. Nfg5 {[%emt 0:01:13]} Nf5 {[%emt 0:00:43]} 26. Nxh7 {[%emt 0:01:31]} Kxh7 {[%emt 0:00:39]} 27. Nf6+ {[%emt 0:00:02]} Kg6 {[%emt 0:00:06]} 28. Rc4 {[%emt 0:00:05]} Qb5 {[%emt 0:00:15]} 29. Qg4+ {[%emt 0:00:04]} 1-0

[Event "British KO-ch Pre 2019"]
[Site "London"]
[Date "2019.11.30"]
[Round "6.7"]
[White "Claridge-Hansen, William"]
[Black "Pein, Jonathan"]
[Result "1/2-1/2"]
[ECO "A10"]
[WhiteElo "2290"]
[BlackElo "2151"]
[Annotator "NA RC"]
[PlyCount "79"]
[EventDate "2019.11.30"]
[EventType "k.o."]
[EventCountry "ENG"]
[SourceTitle "playchess.com"]
[Source "ChessBase"]
[SourceQuality "1"]
[TimeControl "600+5"]

1. c4 {[%emt 0:00:00]} b6 {[%emt 0:00:04]} 2. Nc3 {[%emt 0:00:01]} Bb7 {[%emt 0:00:01]} 3. e4 {[%emt 0:00:01]} e5 {[%emt 0:00:01]} 4. Nge2 {[%emt 0:00:32]} Nf6 {[%emt 0:00:06]} 5. d3 {[%emt 0:00:10]} Bc5 {[%emt 0:00:02]} 6. Na4 {[%emt 0:01:05]} Bb4+ {[%emt 0:01:04]} 7. Bd2 {[%emt 0:00:09]} a5 {[%emt 0:00:09]} 8. a3 {[%emt 0:01:11]} Bxd2+ {[%emt 0:00:02]} 9. Qxd2 {[%emt 0:00:04]} Nc6 {[%emt 0:00:11]} 10. g3 {[%emt 0:01:57]} Qe7 {[%emt 0:00:01]} 11. Bg2 {[%emt 0:00:12]} h5 {[%emt 0:00:16]} 12. h4 {[%emt 0:00:18]} Ng4 {[%emt 0:00:21]} 13. f3 {[%emt 0:00:37]} Nh6 {[%emt 0:00:08]} 14. Nac3 {[%emt 0:00:28]} Nd4 {[%emt 0:00:08]} 15. Nxd4 {[%emt 0:00:06]} exd4 {[%emt 0:00:01]} 16. Nb5 {[%emt 0:00:09]} Qc5 {[%emt 0:03:15]} 17. O-O {[%emt 0:00:46]} a4 {[%emt 0:00:07]} 18. Qf2 {[%emt 0:00:20]} Qe5 {[%emt 0:00:24]} 19. Nxd4 {[%emt 0:00:12]} O-O {[%emt 0:00:15]} 20. Nb5 {[%emt 0:00:12]} c6 {[%emt 0:00:22]} 21. d4 {[%emt 0:00:04]} Qe7 {[%emt 0:00:16]} 22. Nc3 {[%emt 0:00:05]} Ba6 {[%emt 0:00:03]} 23. Nxa4 {[%emt 0:00:47]} Bxc4 {[%emt 0:00:02]} 24. Nxb6 {[%emt 0:00:02]} Bxf1 {[%emt 0:00:03]} 25. Bxf1 {[%emt 0:00:03]} Rab8 {[%emt 0:00:23]} 26. d5 {[%emt 0:00:07]} Qe5 {[%emt 0:00:42]} 27. Nc4 {[%emt 0:00:05]} Qf6 {[%emt 0:00:24]} 28. dxc6 {[%emt 0:00:28]} dxc6 {[%emt 0:00:01]} 29. a4 {[%emt 0:00:25]} Rb3 {[%emt 0:00:09]} 30. Be2 {[%emt 0:00:04]} g5 {[%emt 0:01:03]} 31. Qc5 {[%emt 0:00:45]} gxh4 {[%emt 0:00:24]} 32. Qxh5 {[%emt 0:00:10]} hxg3 {[%emt 0:00:21]} 33. Rd1 {[%emt 0:00:08]} Rd8 {[%emt 0:01:10]} 34. Rxd8+ {[%emt 0:00:17]} Qxd8 {[%emt 0:00:01]} 35. Qxh6 {[%emt 0:00:31]} Qd4+ 36. Kh1 {[%emt 0:00:01]} Qf2 {[%emt 0:00:08]} 37. Qg5+ {[%emt 0:00:13]} Kf8 {[%emt 0:00:09]} 38. Qd8+ {[%emt 0:00:14]} Kg7 {[%emt 0:00:01]} 39. Qg5+ {[%emt 0:00:07]} Kf8 {[%emt 0:00:01]} 40. Qd8+ {[%emt 0:00:03]} 1/2-1/2

[Event "British KO-ch Pre 2019"]
[Site "London"]
[Date "2019.11.30"]
[Round "6.8"]
[White "Golding, Alex"]
[Black "Kalaiyalahan, Akshaya"]
[Result "1-0"]
[ECO "A45"]
[WhiteElo "2306"]
[BlackElo "2154"]
[Annotator "NA"]
[PlyCount "79"]
[EventDate "2019.11.30"]
[EventType "k.o."]
[EventCountry "ENG"]
[SourceTitle "playchess.com"]
[Source "ChessBase"]
[SourceQuality "1"]
[TimeControl "600+5"]

1. d4 {[%emt 0:00:00]} Nf6 {[%emt 0:00:00]} 2. Bg5 {[%emt 0:00:00]} d5 {[%emt 0:00:13]} 3. Bxf6 {[%emt 0:00:07]} exf6 {[%emt 0:00:02]} 4. g3 {[%emt 0:00:03]} g6 {[%emt 0:00:40]} 5. Bg2 {[%emt 0:00:04]} Bg7 {[%emt 0:00:02]} 6. e3 {[%emt 0:00:01]} c6 {[%emt 0:00:06]} 7. Ne2 {[%emt 0:00:02]} f5 {[%emt 0:00:10]} 8. O-O {[%emt 0:00:05]} O-O {[%emt 0:00:03]} 9. b3 {[%emt 0:00:03]} Nd7 {[%emt 0:00:07]} 10. c4 {[%emt 0:00:03]} dxc4 {[%emt 0:00:06]} 11. bxc4 {[%emt 0:00:01]} Nf6 {[%emt 0:00:24]} 12. Nd2 {[%emt 0:00:13]} Re8 {[%emt 0:00:14]} 13. Nc3 {[%emt 0:00:03]} Be6 {[%emt 0:00:14]} 14. Rb1 {[%emt 0:00:09]} Rb8 {[%emt 0:01:02]} 15. Qc2 {[%emt 0:00:09]} Qd6 {[%emt 0:00:46]} 16. Rfd1 {[%emt 0:00:07]} Rec8 {[%emt 0:01:00]} 17. Qa4 {[%emt 0:00:52]} a6 {[%emt 0:00:36]} 18. Qa5 {[%emt 0:00:14]} Qe7 {[%emt 0:02:46]} 19. Ne2 {[%emt 0:01:32]} Rd8 {[%emt 0:00:55]} 20. Nf4 {[%emt 0:00:05]} Bd7 {[%emt 0:01:04]} 21. Nf3 {[%emt 0:00:12]} Ne4 {[%emt 0:00:11]} 22. Nd3 {[%emt 0:00:07]} Be6 {[%emt 0:00:17]} 23. Rbc1 {[%emt 0:00:08]} Nd6 {[%emt 0:00:10]} 24. d5 {[%emt 0:00:22]} cxd5 {[%emt 0:00:16]} 25. cxd5 {[%emt 0:00:02]} b6 {[%emt 0:00:26]} 26. Qa4 {[%emt 0:00:20]} Bxd5 {[%emt 0:00:04]} 27. Nb4 {[%emt 0:00:01]} Bb7 {[%emt 0:00:06]} 28. Nd4 {[%emt 0:00:40]} b5 {[%emt 0:00:03]} 29. Qb3 {[%emt 0:00:11]} Bxg2 {[%emt 0:00:04]} 30. Kxg2 {[%emt 0:00:01]} Qb7+ {[%emt 0:00:01]} 31. Ndc6 {[%emt 0:00:25]} Rbc8 {[%emt 0:00:07]} 32. Kg1 {[%emt 0:00:21]} Rd7 {[%emt 0:00:02]} 33. Na5 {[%emt 0:00:09]} Qa8 {[%emt 0:00:18]} 34. Rxc8+ Qxc8 {[%emt 0:00:01]} 35. Qd5 {[%emt 0:00:34]} Bf8 {[%emt 0:00:09]} 36. Qd4 {[%emt 0:00:23]} Rc7 {[%emt 0:00:07]} 37. Nd5 {[%emt 0:00:03]} Rc2 {[%emt 0:00:07]} 38. Nf6+ {[%emt 0:00:05]} Kg7 {[%emt 0:00:03]} 39. Ne8+ {[%emt 0:00:04]} Kh6 {[%emt 0:00:06]} 40. Qh4# {[%emt 0:00:04]} 1-0

[Event "British KO-ch Pre 2019"]
[Site "London"]
[Date "2019.11.30"]
[Round "7.1"]
[White "Haria, Ravi"]
[Black "Harvey, Marcus R"]
[Result "1/2-1/2"]
[ECO "A30"]
[WhiteElo "2451"]
[BlackElo "2405"]
[Annotator "ChessBase"]
[PlyCount "44"]
[EventDate "2019.11.30"]
[EventType "k.o."]
[EventCountry "ENG"]
[SourceTitle "playchess.com"]
[Source "ChessBase"]
[SourceQuality "1"]
[TimeControl "600+5"]

1. Nf3 {[%emt 0:00:00]} Nf6 {[%emt 0:00:00]} 2. g3 {[%emt 0:00:00]} b6 {[%emt 0:00:00]} 3. Bg2 {[%emt 0:00:03]} Bb7 {[%emt 0:00:00]} 4. O-O {[%emt 0:00:11]} e6 {[%emt 0:00:00]} 5. c4 {[%emt 0:00:08]} c5 {[%emt 0:00:00]} 6. b3 {[%emt 0:00:09]} Be7 {[%emt 0:00:01]} 7. Bb2 {[%emt 0:00:01]} O-O {[%emt 0:00:02]} 8. Nc3 {[%emt 0:00:01]} d5 {[%emt 0:00:01]} 9. cxd5 Nxd5 {[%emt 0:00:02]} 10. Nxd5 Bxd5 {[%emt 0:00:02]} 11. d4 {[%emt 0:02:53]} cxd4 {[%emt 0:00:18]} 12. Nxd4 {[%emt 0:01:17]} Bxg2 13. Kxg2 {[%emt 0:00:02]} Qd5+ {[%emt 0:00:24]} 14. Nf3 {[%emt 0:00:08]} Qb7 {[%emt 0:00:47]} 15. Rc1 {[%emt 0:00:34]} Nd7 {[%emt 0:00:23]} 16. Rc4 {[%emt 0:00:31]} Rac8 {[%emt 0:00:20]} 17. Rxc8 Rxc8 {[%emt 0:00:02]} 18. Qd2 {[%emt 0:01:20]} Nf6 {[%emt 0:01:24]} 19. Rd1 {[%emt 0:00:39]} h6 {[%emt 0:00:10]} 20. Bd4 {[%emt 0:00:26]} Qc6 {[%emt 0:00:14]} 21. Qb2 {[%emt 0:00:48]} Qc2 {[%emt 0:00:18]} 22. Qxc2 Rxc2 1/2-1/2